lending/lending_fUSD_20250516
["ID","MTS","AMOUNT","RATE_DAILY","PERIOD"]
[361288417,1747426243376,-400.0,0.00016438,2]
[361288418,1747426243385,-744.84,0.00016438,2]
[361288419,1747426243394,-450.0,0.00016438,2]
[361288420,1747426243403,-714.37,0.00016438,2]
[361288421,1747426243411,-400.0,0.00016438,2]
[361288422,1747426243420,-1735.08,0.00016438,2]
[361288423,1747426243429,-400.0,0.00016438,2]
[361288424,1747426243438,-500.0,0.00016438,2]
[361288425,1747426243447,-500.0,0.00016438,2]
[361288426,1747426243456,-500.0,0.00016438,2]
[361288427,1747426243465,-500.0,0.00016438,2]
[361288428,1747426243474,-500.0,0.00016438,2]
[361288429,1747426243483,-1180.43,0.00016438,2]
[361288430,1747426243492,-634.22,0.00016438,2]
[361288431,1747426243501,-559.54,0.00016438,2]
[361288432,1747426243510,-400.0,0.00016438,2]
[361288433,1747426243519,-802.51,0.00016438,2]
[361288434,1747426243528,-400.0,0.00016438,2]
[361288435,1747426243537,-597.17,0.00016438,2]
[361288436,1747426243546,-538.15,0.00016438,2]
[361288437,1747426243555,-1023.74,0.00016438,2]
[361288438,1747426243565,-151.948279,0.00016438,2]
[361288439,1747426243574,-450.0,0.00016438,2]
[361288440,1747426243584,-400.0,0.00016438,2]
[361288441,1747426243593,-1233.41,0.00016438,2]
[361288442,1747426243603,-400.0,0.00016438,2]
[361288443,1747426243611,-400.0,0.00016438,2]
[361288444,1747426243621,-400.0,0.00016438,2]
[361288445,1747426243629,-469.21,0.00016438,2]
[361288446,1747426243638,-637.47,0.00016438,2]
[361288447,1747426243647,-197.47587168,0.00016438,2]
[361288448,1747426243657,-1179.71,0.00016438,2]
[361288449,1747426243665,-151.0,0.00016438,2]
[361288450,1747426243674,-151.0,0.00016438,2]
[361288451,1747426243683,-151.0,0.00016438,2]
[361288452,1747426243692,-450.0,0.00016438,2]
[361288453,1747426243702,-1501.86,0.00016438,2]
[361288454,1747426243711,-1006.4,0.00016438,2]
[361288455,1747426243720,-455.24,0.00016438,2]
[361288456,1747426243729,-400.0,0.00016438,2]
[361288457,1747426243738,-1228.87,0.00016438,2]
[361288458,1747426243747,-400.0,0.00016438,2]
[361288459,1747426243756,-450.0,0.00016438,2]
[361288460,1747426243765,-450.0,0.00016438,2]
[361288461,1747426243774,-400.0,0.00016438,2]
[361288462,1747426243787,-450.0,0.00016438,2]
[361288463,1747426243796,-400.0,0.00016438,2]
[361288464,1747426243806,-500.0,0.00016438,2]
[361288465,1747426243815,-616.99,0.00016438,2]
[361288466,1747426243824,-400.0,0.00016438,2]
[361288467,1747426243834,-400.0,0.00016438,2]
[361288468,1747426243843,-400.0,0.00016438,2]
[361288469,1747426243852,-536.8,0.00016438,2]
[361288470,1747426243863,-400.0,0.00016438,2]
[361288471,1747426243872,-400.0,0.00016438,2]
[361288472,1747426243881,-400.0,0.00016438,2]
[361288473,1747426243890,-432.42,0.00016438,2]
[361288474,1747426243899,-958.08,0.00016438,2]
[361288475,1747426243908,-400.0,0.00016438,2]
[361288476,1747426243917,-400.0,0.00016438,2]
[361288477,1747426243927,-400.0,0.00016438,2]
[361288478,1747426243936,-634.88,0.00016438,2]
[361288479,1747426243945,-400.0,0.00016438,2]
[361288480,1747426243954,-446.66,0.00016438,2]
[361288481,1747426243963,-647.43,0.00016438,2]
[361288482,1747426243973,-400.0,0.00016438,2]
[361288483,1747426243982,-450.0,0.00016438,2]
[361288484,1747426243991,-400.0,0.00016438,2]
[361288485,1747426244000,-400.0,0.00016438,2]
[361288486,1747426244009,-457.94,0.00016438,2]
[361288487,1747426244018,-400.0,0.00016438,2]
[361288488,1747426244028,-400.0,0.00016438,2]
[361288489,1747426244036,-400.0,0.00016438,2]
[361288490,1747426244046,-495.2,0.00016438,2]
[361288491,1747426244054,-568.77,0.00016438,2]
[361288492,1747426244063,-400.0,0.00016438,2]
[361288493,1747426244071,-485.77,0.00016438,2]
[361288494,1747426244081,-400.0,0.00016438,2]
[361288495,1747426244090,-1271.7,0.00016438,2]
[361288496,1747426244099,-1248.24,0.00016438,2]
[361288497,1747426244108,-187.43091723,0.00016438,2]
[361288498,1747426244117,-803.95,0.00016438,2]
[361288499,1747426244126,-400.0,0.00016438,2]
[361288500,1747426244136,-1129.43,0.00016438,2]
[361288501,1747426244146,-1439.71,0.00016438,2]
[361288502,1747426244156,-400.0,0.00016438,2]
[361288503,1747426244165,-400.0,0.00016438,2]
[361288504,1747426244174,-400.0,0.00016438,2]
[361288505,1747426244183,-400.0,0.00016438,2]
[361288506,1747426244193,-400.0,0.00016438,2]
[361288507,1747426244201,-616.61,0.00016438,2]
[361288508,1747426244210,-533.86,0.00016438,2]
[361288509,1747426244219,-450.0,0.00016438,2]
[361288510,1747426244228,-400.0,0.00016438,2]
[361288511,1747426244237,-448.79,0.00016438,2]
[361288512,1747426244246,-400.0,0.00016438,2]
[361288513,1747426244255,-400.0,0.00016438,2]
[361288514,1747426244264,-860.17,0.00016438,2]
[361288515,1747426244273,-767.96,0.00016438,2]
[361288516,1747426244282,-478.73,0.00016438,2]
[361288517,1747426244291,-722.5,0.00016438,2]
[361288518,1747426244300,-400.0,0.00016438,2]
[361288519,1747426244309,-400.0,0.00016438,2]
[361288520,1747426244318,-673.89,0.00016438,2]
[361288521,1747426244328,-503.18324614,0.00016438,2]
[361288522,1747426244337,-400.0,0.00016438,2]
[361288523,1747426244347,-400.0,0.00016438,2]
[361288524,1747426244356,-400.0,0.00016438,2]
[361288525,1747426244366,-775.08,0.00016438,2]
[361288526,1747426244375,-520.70983848,0.00016438,2]
[361288527,1747426244384,-400.0,0.00016438,2]
[361288528,1747426244393,-400.0,0.00016438,2]
[361288529,1747426244403,-400.0,0.00016438,2]
[361288530,1747426244412,-411.25,0.00016438,2]
[361288531,1747426244421,-638.46,0.00016438,2]
[361288532,1747426244431,-400.0,0.00016438,2]
[361288533,1747426244440,-400.0,0.00016438,2]
[361288534,1747426244450,-1115.75,0.00016438,2]
[361288535,1747426244460,-608.86,0.00016438,2]
[361288536,1747426244469,-400.0,0.00016438,2]
[361288537,1747426244479,-489.31,0.00016438,2]
[361288538,1747426244488,-151.0,0.00016438,2]
[361288539,1747426244497,-400.0,0.00016438,2]
[361288540,1747426244507,-597.1,0.00016438,2]
[361288541,1747426244517,-151.0,0.00016438,2]
[361288542,1747426244528,-400.0,0.00016438,2]
[361288543,1747426244537,-400.0,0.00016438,2]
[361288544,1747426244547,-466.56,0.00016438,2]
[361288545,1747426244556,-292.77459453,0.00016438,2]
[361288546,1747426244566,-400.0,0.00016438,2]
[361288547,1747426244736,-400.0,0.00016438,2]
[361288548,1747426244767,-856.98,0.00016438,2]
[361288549,1747426244777,-923.98,0.00016438,2]
[361288550,1747426244795,-400.0,0.00016438,2]
[361288551,1747426244810,-400.0,0.00016438,2]
[361288552,1747426244820,-770.11,0.00016438,2]
[361288553,1747426244829,-159.08089157,0.00016438,2]
[361288554,1747426244838,-400.0,0.00016438,2]
[361288555,1747426244848,-450.0,0.00016438,2]
[361288556,1747426244857,-400.0,0.00016438,2]
[361288557,1747426244866,-151.0,0.00016438,2]
[361288558,1747426244875,-151.0,0.00016438,2]
[361288559,1747426244885,-400.0,0.00016438,2]
[361288560,1747426244894,-405.85,0.00016438,2]
[361288561,1747426244904,-400.0,0.00016438,2]
[361288562,1747426244914,-400.0,0.00016438,2]
[361288563,1747426244923,-1124.11,0.00016438,2]
[361288564,1747426244933,-400.0,0.00016438,2]
[361288565,1747426244942,-829.89,0.00016438,2]
[361288566,1747426244951,-400.0,0.00016438,2]
[361288567,1747426244960,-400.0,0.00016438,2]
[361288568,1747426244969,-400.0,0.00016438,2]
[361288569,1747426244979,-644.21,0.00016438,2]
[361288570,1747426244988,-151.0,0.00016438,2]
[361288571,1747426244997,-450.0,0.00016438,2]
[361288572,1747426245006,-151.0,0.00016438,2]
[361288573,1747426245015,-400.0,0.00016438,2]
[361288574,1747426245024,-1474.33,0.00016438,2]
[361288575,1747426245033,-400.0,0.00016438,2]
[361288576,1747426245042,-446.35,0.00016438,2]
[361288577,1747426245052,-639.43,0.00016438,2]
[361288578,1747426245061,-450.0,0.00016438,2]
[361288579,1747426245070,-450.0,0.00016438,2]
[361288580,1747426245079,-400.0,0.00016438,2]
[361288581,1747426245088,-539.17,0.00016438,2]
[361288582,1747426245097,-406.75,0.00016438,2]
[361288583,1747426245106,-400.0,0.00016438,2]
[361288584,1747426245115,-400.0,0.00016438,2]
[361288585,1747426245125,-567.13,0.00016438,2]
[361288586,1747426245134,-400.0,0.00016438,2]
[361288587,1747426245143,-400.0,0.00016438,2]
[361288588,1747426245153,-439.10290397,0.00016438,2]
[361288589,1747426245162,-400.0,0.00016438,2]
[361288590,1747426245171,-494.34,0.00016438,2]
[361288591,1747426245181,-400.0,0.00016438,2]
[361288592,1747426245190,-400.0,0.00016438,2]
[361288593,1747426245199,-989.03,0.00016438,2]
[361288594,1747426245208,-400.0,0.00016438,2]
[361288595,1747426245217,-151.0,0.00016438,2]
[361288596,1747426245227,-151.0,0.00016438,2]
[361288597,1747426245236,-400.0,0.00016438,2]
[361288598,1747426245245,-400.0,0.00016438,2]
[361288599,1747426245254,-508.13,0.00016438,2]
[361288600,1747426245263,-2018.94,0.00016438,2]
[361288601,1747426245273,-400.0,0.00016438,2]
[361288602,1747426245282,-400.0,0.00016438,2]
[361288603,1747426245291,-151.0,0.00016438,2]
[361288604,1747426245300,-967.48,0.00016438,2]
[361288605,1747426245310,-151.0,0.00016438,2]
[361288606,1747426245319,-2408.78,0.00016438,2]
[361288607,1747426245329,-400.0,0.00016438,2]
[361288608,1747426245339,-400.0,0.00016438,2]
[361288609,1747426245349,-1187.98,0.00016438,2]
[361288610,1747426245358,-511.33,0.00016438,2]
[361288611,1747426245367,-400.0,0.00016438,2]
[361288612,1747426245376,-400.0,0.00016438,2]
[361288613,1747426245386,-400.0,0.00016438,2]
[361288614,1747426245395,-400.0,0.00016438,2]
[361288615,1747426245404,-400.0,0.00016438,2]
[361288616,1747426245413,-947.35,0.00016438,2]
[361288617,1747426245423,-400.0,0.00016438,2]
[361288618,1747426245432,-400.0,0.00016438,2]
[361288620,1747426245442,-400.0,0.00016438,2]
[361288621,1747426245452,-400.0,0.00016438,2]
[361288622,1747426245461,-400.0,0.00016438,2]
[361288623,1747426245470,-151.0,0.00016438,2]
[361288624,1747426245479,-1614.73,0.00016438,2]
[361288625,1747426245488,-151.0,0.00016438,2]
[361288626,1747426245498,-151.0,0.00016438,2]
[361288627,1747426245508,-151.0,0.00016438,2]
[361288628,1747426245517,-400.0,0.00016438,2]
[361288629,1747426245526,-400.0,0.00016438,2]
[361288630,1747426245536,-400.0,0.00016438,2]
[361288631,1747426245545,-594.08,0.00016438,2]
[361288632,1747426245554,-400.0,0.00016438,2]
[361288633,1747426245563,-450.0,0.00016438,2]
[361288634,1747426245573,-400.0,0.00016438,2]
[361288635,1747426245582,-400.0,0.00016438,2]
[361288636,1747426245591,-450.0,0.00016438,2]
[361288637,1747426245600,-432.92,0.00016438,2]
[361288638,1747426245609,-400.0,0.00016438,2]
[361288639,1747426245619,-453.18,0.00016438,2]
[361288640,1747426245628,-448.77,0.00016438,2]
[361288641,1747426245638,-400.0,0.00016438,2]
[361288642,1747426245647,-450.0,0.00016438,2]
[361288643,1747426245657,-491.91,0.00016438,2]
[361288644,1747426245667,-400.0,0.00016438,2]
[361288645,1747426245676,-409.67863041,0.00016438,2]
[361288646,1747426245685,-400.0,0.00016438,2]
[361288647,1747426245695,-450.0,0.00016438,2]
[361288648,1747426245704,-400.0,0.00016438,2]
[361288649,1747426245714,-400.0,0.00016438,2]
[361288650,1747426245723,-1453.12,0.00016438,2]
[361288651,1747426245732,-695.78,0.00016438,2]
[361288652,1747426245742,-400.0,0.00016438,2]
[361288653,1747426245751,-400.0,0.00016438,2]
[361288654,1747426245760,-400.0,0.00016438,2]
[361288655,1747426245770,-453.08,0.00016438,2]
[361288656,1747426245782,-2049.04,0.00016438,2]
[361288657,1747426245794,-400.0,0.00016438,2]
[361288658,1747426245803,-450.0,0.00016438,2]
[361288659,1747426245813,-400.0,0.00016438,2]
[361288660,1747426245823,-507.26,0.00016438,2]
[361288661,1747426245832,-400.0,0.00016438,2]
[361288662,1747426245841,-1667.8,0.00016438,2]
[361288663,1747426245851,-1148.34,0.00016438,2]
[361288664,1747426245860,-450.0,0.00016438,2]
[361288665,1747426245869,-400.0,0.00016438,2]
[361288666,1747426245878,-400.0,0.00016438,2]
[361288667,1747426245888,-400.0,0.00016438,2]
[361288668,1747426245898,-563.81,0.00016438,2]
[361288669,1747426245907,-485.6,0.00016438,2]
[361288670,1747426245916,-400.0,0.00016438,2]
[361288671,1747426245925,-491.61,0.00016438,2]
[361288672,1747426245935,-173.65484284,0.00016438,2]
[361288673,1747426245944,-254.46791137,0.00016438,2]
[361288674,1747426245953,-400.0,0.00016438,2]
[361288675,1747426245963,-400.0,0.00016438,2]
[361288676,1747426245972,-400.0,0.00016438,2]
[361288677,1747426245981,-1263.53,0.00016438,2]
[361288678,1747426245991,-450.0,0.00016438,2]
[361288679,1747426246000,-489.25,0.00016438,2]
[361288680,1747426246009,-857.38,0.00016438,2]
[361288681,1747426246018,-400.0,0.00016438,2]
[361288682,1747426246028,-400.0,0.00016438,2]
[361288683,1747426246037,-3128.87,0.00016438,2]
[361288684,1747426246047,-151.0,0.00016438,2]
[361288685,1747426246056,-151.0,0.00016438,2]
[361288686,1747426246065,-151.0,0.00016438,2]
[361288687,1747426246074,-452.08979236,0.00016438,2]
[361288688,1747426246083,-450.0,0.00016438,2]
[361288689,1747426246093,-400.0,0.00016438,2]
[361288690,1747426246102,-569.29,0.00016438,2]
[361288691,1747426246111,-450.0,0.00016438,2]
[361288692,1747426246120,-400.0,0.00016438,2]
[361288693,1747426246130,-400.0,0.00016438,2]
[361288694,1747426246139,-400.0,0.00016438,2]
[361288695,1747426246148,-151.0,0.00016438,2]
[361288696,1747426246158,-151.0,0.00016438,2]
[361288697,1747426246167,-410.36,0.00016438,2]
[361288698,1747426246177,-151.0,0.00016438,2]
[361288699,1747426246186,-400.0,0.00016438,2]
[361288700,1747426246196,-400.0,0.00016438,2]
[361288701,1747426246205,-400.0,0.00016438,2]
[361288702,1747426246214,-400.0,0.00016438,2]
[361288703,1747426246223,-400.0,0.00016438,2]
[361288704,1747426246233,-828.59,0.00016438,2]
[361288705,1747426246242,-703.57,0.00016438,2]
[361288706,1747426246251,-400.0,0.00016438,2]
[361288707,1747426246260,-400.0,0.00016438,2]
[361288708,1747426246269,-400.0,0.00016438,2]
[361288709,1747426246278,-400.0,0.00016438,2]
[361288710,1747426246288,-400.0,0.00016438,2]
[361288711,1747426246297,-400.0,0.00016438,2]
[361288712,1747426246306,-500.0,0.00016438,2]
[361288713,1747426246315,-500.21,0.00016438,2]
[361288714,1747426246325,-400.0,0.00016438,2]
[361288715,1747426246334,-400.0,0.00016438,2]
[361288716,1747426246343,-486.48,0.00016438,2]
[361288717,1747426246352,-400.0,0.00016438,2]
[361288718,1747426246361,-400.0,0.00016438,2]
[361288719,1747426246370,-450.0,0.00016438,2]
[361288720,1747426246379,-765.3,0.00016438,2]
[361288721,1747426246389,-400.0,0.00016438,2]
[361288722,1747426246398,-471.61,0.00016438,2]
[361288723,1747426246407,-400.0,0.00016438,2]
[361288724,1747426246416,-1648.6,0.00016438,2]
[361288725,1747426246426,-400.0,0.00016438,2]
[361288726,1747426246436,-430.39,0.00016438,2]
[361288727,1747426246445,-871.93,0.00016438,2]
[361288728,1747426246454,-821.14,0.00016438,2]
[361288729,1747426246463,-403.59,0.00016438,2]
[361288730,1747426246472,-350.16249584,0.00016438,2]
[361288731,1747426246482,-417.22,0.00016438,2]
[361288732,1747426246491,-400.0,0.00016438,2]
[361288733,1747426246500,-400.0,0.00016438,2]
[361288734,1747426246510,-450.0,0.00016438,2]
[361288735,1747426246519,-485.12,0.00016438,2]
[361288736,1747426246529,-400.0,0.00016438,2]
[361288737,1747426246538,-400.0,0.00016438,2]
[361288738,1747426246547,-151.0,0.00016438,2]
[361288739,1747426246556,-154.608435,0.00016438,2]
[361288740,1747426246566,-400.0,0.00016438,2]
[361288741,1747426246577,-155.65590983,0.00016438,2]
[361288742,1747426246587,-400.0,0.00016438,2]
[361288743,1747426246596,-400.0,0.00016438,2]
[361288744,1747426246605,-400.0,0.00016438,2]
[361288745,1747426246615,-400.0,0.00016438,2]
[361288746,1747426246624,-400.0,0.00016438,2]
[361288747,1747426246633,-893.46,0.00016438,2]
[361288748,1747426246642,-1282.7,0.00016438,2]
[361288749,1747426246652,-400.0,0.00016438,2]
[361288750,1747426246661,-456.02,0.00016438,2]
[361288751,1747426246671,-400.0,0.00016438,2]
[361288752,1747426246680,-400.0,0.00016438,2]
[361288753,1747426246689,-400.0,0.00016438,2]
[361288754,1747426246699,-151.0,0.00016438,2]
[361288755,1747426246708,-640.85,0.00016438,2]
[361288756,1747426246718,-151.0,0.00016438,2]
[361288757,1747426246727,-767.85,0.00016438,2]
[361288758,1747426246736,-400.0,0.00016438,2]
[361288759,1747426246746,-790.19,0.00016438,2]
[361288760,1747426246755,-466.21,0.00016438,2]
[361288761,1747426246764,-400.0,0.00016438,2]
[361288762,1747426246774,-400.0,0.00016438,2]
[361288763,1747426246783,-400.0,0.00016438,2]
[361288764,1747426246795,-400.0,0.00016438,2]
[361288765,1747426246804,-400.0,0.00016438,2]
[361288766,1747426246813,-471.36,0.00016438,2]
[361288767,1747426246822,-400.0,0.00016438,2]
[361288768,1747426246834,-179.78326704,0.00016438,2]
[361288769,1747426246843,-210.25056691,0.00016438,2]
[361288770,1747426246852,-3271.29,0.00016438,2]
[361288771,1747426246863,-400.0,0.00016438,2]
[361288772,1747426246872,-1409.42,0.00016438,2]
[361288773,1747426246882,-476.96,0.00016438,2]
[361288774,1747426246891,-400.0,0.00016438,2]
[361288775,1747426246901,-400.0,0.00016438,2]
[361288776,1747426246910,-400.0,0.00016438,2]
[361288777,1747426247174,-977.9,0.00016438,2]
[361288778,1747426247231,-400.0,0.00016438,2]
[361288779,1747426247241,-400.0,0.00016438,2]
[361288780,1747426247250,-260.935554,0.00016438,2]
[361288781,1747426247259,-450.0,0.00016438,2]
[361288782,1747426247269,-260.935554,0.00016438,2]
[361288783,1747426247278,-260.935554,0.00016438,2]
[361288784,1747426247287,-400.0,0.00016438,2]
[361288785,1747426247298,-400.0,0.00016438,2]
[361288786,1747426247307,-450.0,0.00016438,2]
[361288787,1747426247316,-400.0,0.00016438,2]
[361288788,1747426247325,-400.0,0.00016438,2]
[361288789,1747426247335,-1459.74,0.00016438,2]
[361288790,1747426247345,-727.49,0.00016438,2]
[361288791,1747426247354,-400.0,0.00016438,2]
[361288792,1747426247363,-1251.24,0.00016438,2]
[361288793,1747426247372,-260.935554,0.00016438,2]
[361288794,1747426247381,-260.935554,0.00016438,2]
[361288795,1747426247390,-260.935554,0.00016438,2]
[361288796,1747426247399,-209.19931187,0.00016438,2]
[361288797,1747426247408,-450.0,0.00016438,2]
[361288798,1747426247417,-400.0,0.00016438,2]
[361288799,1747426247426,-400.0,0.00016438,2]
[361288800,1747426247436,-907.74,0.00016438,2]
[361288801,1747426247445,-587.956256,0.00016438,2]
[361288802,1747426247454,-587.956256,0.00016438,2]
[361288803,1747426247464,-400.0,0.00016438,2]
[361288804,1747426247473,-587.956256,0.00016438,2]
[361288805,1747426247483,-400.0,0.00016438,2]
[361288806,1747426247492,-428.908007,0.00016438,2]
[361288807,1747426247501,-400.0,0.00016438,2]
[361288808,1747426247510,-400.0,0.00016438,2]
[361288809,1747426247519,-428.908007,0.00016438,2]
[361288810,1747426247529,-400.0,0.00016438,2]
[361288811,1747426247538,-428.908007,0.00016438,2]
[361288812,1747426247547,-400.0,0.00016438,2]
[361288813,1747426247556,-587.956256,0.00016438,2]
[361288814,1747426247565,-587.956256,0.00016438,2]
[361288815,1747426247574,-412.91,0.00016438,2]
[361288816,1747426247584,-259.09170947,0.00016438,2]
[361288817,1747426247593,-587.956256,0.00016438,2]
[361288818,1747426247603,-763.28,0.00016438,2]
[361288819,1747426247612,-428.908007,0.00016438,2]
[361288820,1747426247621,-428.908007,0.00016438,2]
[361288821,1747426247630,-400.0,0.00016438,2]
[361288822,1747426247639,-803.56,0.00016438,2]
[361288823,1747426247649,-428.908007,0.00016438,2]
[361288824,1747426247658,-400.0,0.00016438,2]
[361288825,1747426247668,-400.0,0.00016438,2]
[361288826,1747426247677,-400.0,0.00016438,2]
[361288827,1747426247686,-400.0,0.00016438,2]
[361288828,1747426247695,-400.0,0.00016438,2]
[361288829,1747426247704,-400.0,0.00016438,2]
[361288830,1747426247715,-400.0,0.00016438,2]
[361288831,1747426247724,-400.0,0.00016438,2]
[361288832,1747426247733,-400.0,0.00016438,2]
[361288833,1747426247742,-400.0,0.00016438,2]
[361288834,1747426247752,-400.0,0.00016438,2]
[361288835,1747426247761,-400.0,0.00016438,2]
[361288836,1747426247771,-151.0,0.00016438,2]
[361288837,1747426247781,-151.0,0.00016438,2]
[361288838,1747426247793,-186.337039,0.00016438,2]
[361288839,1747426247802,-557.08,0.00016438,2]
[361288840,1747426247811,-662.7,0.00016438,2]
[361288841,1747426247821,-484.39,0.00016438,2]
[361288842,1747426247830,-496.5,0.00016438,2]
[361288843,1747426247840,-400.0,0.00016438,2]
[361288844,1747426247849,-400.0,0.00016438,2]
[361288845,1747426247860,-413.65,0.00016438,2]
[361288846,1747426247869,-4560.85,0.00016438,2]
[361288847,1747426247879,-400.0,0.00016438,2]
[361288848,1747426247888,-400.0,0.00016438,2]
[361288849,1747426247897,-400.0,0.00016438,2]
[361288850,1747426247906,-438.78,0.00016438,2]
[361288851,1747426247916,-402.3746182,0.00016438,2]
[361288852,1747426247925,-400.0,0.00016438,2]
[361288853,1747426247935,-500.0,0.00016438,2]
[361288854,1747426247944,-500.0,0.00016438,2]
[361288855,1747426247953,-151.0,0.00016438,2]
[361288856,1747426247962,-400.0,0.00016438,2]
[361288857,1747426247971,-500.0,0.00016438,2]
[361288858,1747426247981,-500.0,0.00016438,2]
[361288859,1747426247990,-151.0,0.00016438,2]
[361288860,1747426247999,-23461.15,0.00016438,2]
[361288861,1747426248008,-500.0,0.00016438,2]
[361288862,1747426248018,-400.0,0.00016438,2]
[361288863,1747426248028,-151.0,0.00016438,2]
[361288864,1747426248038,-400.0,0.00016438,2]
[361288865,1747426248048,-499.07,0.00016438,2]
[361288866,1747426248058,-609.34,0.00016438,2]
[361288867,1747426248068,-400.0,0.00016438,2]
[361288868,1747426248077,-576.54,0.00016438,2]
[361288869,1747426248088,-400.0,0.00016438,2]
[361288870,1747426248098,-400.0,0.00016438,2]
[361288871,1747426248107,-1719.49,0.00016438,2]
[361288872,1747426248117,-400.0,0.00016438,2]
[361288873,1747426248127,-400.0,0.00016438,2]
[361288874,1747426248137,-234.82657015,0.00016438,2]
[361288875,1747426248147,-400.0,0.00016438,2]
[361288876,1747426248156,-400.0,0.00016438,2]
[361288877,1747426248166,-400.0,0.00016438,2]
[361288878,1747426248175,-725.99,0.00016438,2]
[361288879,1747426248185,-485.48061488,0.00016438,2]
[361288880,1747426248194,-616.42,0.00016438,2]
[361288881,1747426248203,-450.0,0.00016438,2]
[361288882,1747426248213,-400.39565934,0.00016438,2]
[361288883,1747426248222,-1048.33,0.00016438,2]
[361288884,1747426248232,-400.0,0.00016438,2]
[361288885,1747426248241,-1612.17,0.00016438,2]
[361288886,1747426248250,-378.78,0.00016438,2]
[361288887,1747426248260,-400.0,0.00016438,2]
[361288888,1747426248269,-400.0,0.00016438,2]
[361288889,1747426248279,-400.0,0.00016438,2]
[361288890,1747426248288,-1000.0,0.00016438,2]
[361288891,1747426248298,-400.0,0.00016438,2]
[361288892,1747426248308,-1325.06,0.00016438,2]
[361288893,1747426248318,-662.1,0.00016438,2]
[361288894,1747426248328,-400.0,0.00016438,2]
[361288895,1747426248339,-400.0,0.00016438,2]
[361288896,1747426248349,-400.0,0.00016438,2]
[361288897,1747426248359,-400.0,0.00016438,2]
[361288898,1747426248369,-601.19,0.00016438,2]
[361288899,1747426248378,-2000.0,0.00016438,2]
[361288900,1747426248388,-400.0,0.00016438,2]
[361288901,1747426248398,-151.917306,0.00016438,2]
[361288902,1747426248408,-6138.62,0.00016438,2]
[361288903,1747426248417,-574.02,0.00016438,2]
[361288904,1747426248427,-532.77787133,0.00016438,2]
[361288905,1747426248436,-959.31,0.00016438,2]
[361288906,1747426248445,-550.83,0.00016438,2]
[361288907,1747426248455,-400.0,0.00016438,2]
[361288908,1747426248464,-400.0,0.00016438,2]
[361288909,1747426248473,-400.0,0.00016438,2]
[361288910,1747426248483,-400.0,0.00016438,2]
[361288911,1747426248492,-3855.52,0.00016438,2]
[361288912,1747426248501,-400.0,0.00016438,2]
[361288913,1747426248511,-662.39,0.00016438,2]
[361288914,1747426248520,-436.10608643,0.00016438,2]
[361288915,1747426248530,-400.0,0.00016438,2]
[361288916,1747426248539,-400.0,0.00016438,2]
[361288917,1747426248549,-400.0,0.00016438,2]